[Event "LV Capablanca Memorial Premier 2022"]
[Site "La Habana"]
[Date "2022.04.27"]
[Round "8.2"]
[White "Hernandez Gil, Ineymig"]
[Black "Kiolbasa, Oliwia"]
[Result "1-0"]
[ECO "C55"]
[WhiteElo "2348"]
[BlackElo "2388"]
[Annotator "TA"]
[PlyCount "115"]
[EventDate "2022.04.20"]
[EventType "tourn"]
[EventCountry "CUB"]
[SourceTitle "playchess.com"]
[Source "ChessBase"]
[SourceQuality "1"]
[TimeControl "40/5400+30:1800+30"]

{[%evp 10,115,37,35,43,36,50,30,36,16,19,17,62,44,81,63,54,55,171,164,166,173,163,185,243,257,287,300,302,328,316,321,308,334,327,291,362,386,467,472,459,461,416,202,966,958,1429,1378,1520,1562,1321,245,229,251,184,68,733,725,908,903,833,766,2560,661,795,795,795,795,795,775,784,771,758,754,713,702,648,599,1037,990,1383,1026,29979,29980,29981,29982,29982,29982,29982,29975,29983,29976,29976,29977,29978,29978,29981,29982,29982,29983,29984,29985,29985,29984,29985,29985,29986,29987]} 1. e4 {[%emt 0:00:56] Gelfand,Boris} e5 {[%emt 0:00:11]} 2. Nf3 {[%emt 0:00:06]} Nc6 {[%emt 0:00:11]} 3. Bc4 {[%emt 0:00:06]} Nf6 {[%emt 0:00:20]} 4. d3 {[%emt 0:00:06]} h6 {[%emt 0:00:29]} 5. O-O {[%emt 0:00:12]} d6 {[%emt 0:00:22]} 6. c3 {[%emt 0:00:12]} g5 {[%emt 0:00:49] is recently more successful than 6...g6. C55: Two Knights: 4 d3, 4 d4 exd4 5 e5 and Max Lange Attack.} 7. Nbd2 {[%emt 0:00:10]} Bg7 {[%emt 0:01:02]} 8. Bb3 {[%emt 0:00:07]} O-O {[%emt 0:01:48] White has an edge.} 9. Nc4 {[%emt 0:00:05]} Be6 {[%emt 0:00:55]} 10. Re1 {[%emt 0:00:12]} Re8 {[%emt 0:04:14]} 11. h4 {[%emt 0:00:26]} g4 {[%emt 0:07:45]} 12. Nh2 {[%emt 0:00:10]} h5 $1 {[%emt 0:18:06]} 13. Bg5 {[%emt 0:07:15] [#]} d5 $146 {[%emt 0:00:51]} (13... Ne7 $14) ({Predecessor:} 13... Qd7 14. Nf1 d5 15. Ncd2 d4 16. Ng3 dxc3 17. bxc3 Qxd3 18. Bxf6 Bxf6 19. Nxh5 Bh8 {1-0 (31) Gelfand,B (2690)-Bareev,E (2670) Munich 1993 CBM 036 [Gelfand,Boris]}) 14. exd5 $18 {[%emt 0:08:47]} Bxd5 {[%emt 0:00:34]} 15. Nf1 {[%emt 0:13:26]} Qd7 {[%emt 0:10:14]} 16. Ng3 $1 {[%emt 0:05:27]} b5 {[%emt 0:00:10]} (16... Nh7 {was necessary.} 17. Nxh5 Rab8) 17. Ne3 {[%emt 0:04:45]} Bxb3 {[%emt 0:02:11]} 18. axb3 {[%emt 0:03:37]} Nh7 {[%emt 0:02:35]} 19. Nef5 $1 {[%emt 0:08:53]} (19. Nxh5 f6 $16) 19... Bf8 {[%emt 0:12:37]} 20. f3 {[%emt 0:11:10]} Nxg5 {[%emt 0:02:02]} 21. hxg5 {[%emt 0:00:12]} Bc5+ {[%emt 0:00:32]} 22. Kf1 {[%emt 0:04:55]} Kf8 {[%emt 0:12:24]} 23. fxg4 {[%emt 0:06:05]} hxg4 {[%emt 0:00:05]} 24. Qxg4 {[%emt 0:12:45] Black must now prevent Qh5.} (24. b4 Bb6 25. Re4 Ne7 26. Nxe7 (26. Rxe5 Nxf5 27. Rxf5 Qd6 $11) 26... Kxe7 27. Rxg4 (27. Rxe5+ Kf8 $16) 27... Rad8 $18) 24... Qxd3+ {[%emt 0:02:28]} 25. Re2 {[%emt 0:02:01] White threatens Qh5 and mate.} Ne7 {[%emt 0:01:08]} 26. b4 {[%emt 0:05:52]} (26. g6 $142 {Hoping for g7+.} fxg6 27. Qg5 $1) 26... Nxf5 {[%emt 0:03:32]} (26... Bb6 27. g6 fxg6) 27. Nxf5 {[%emt 0:00:06]} Bb6 {[%emt 0:00:06]} 28. g6 {[%emt 0:01:03]} fxg6 {[%emt 0:01:46]} 29. Qxg6 {[%emt 0:00:08][%csl Gf5][%cal Rg6g7]} Qd7 {[%emt 0:01:22] Inhibits Qg7+.} 30. Rd2 $2 {[%emt 0:01:31]} Re6 {[%emt 0:03:53] [#]} 31. Qg5 $40 {[%emt 0:00:22][%mdl 128] White goes for the king. Dancing on a razor blade.} (31. Rxd7 Rxg6 32. Re1 a5 $16) (31. Qh6+ $2 Rxh6 32. Rxd7 Rh1+ 33. Ke2 Rxa1 $19) 31... Qf7 {[%emt 0:04:45]} 32. Rad1 {[%emt 0:01:39]} ({White should play} 32. g4 $18 Rg6 33. Rd8+ Rxd8 34. Qxd8+ Qe8 35. Qh4) 32... c6 $2 {[%emt 0:00:30][%mdl 8192] Loses the game.} (32... Qg6 $14 33. Qxg6 (33. Rd8+ Rxd8 34. Rxd8+ Kf7 $11) 33... Rxg6) 33. g4 {[%emt 0:02:37]} ({Weaker is} 33. Rd7 Qg6 34. Qxg6 Rxg6 $18) 33... Rg6 {[%emt 0:04:02]} 34. Qh5 {[%emt 0:01:11]} ({Stronger than} 34. Rd8+ Bxd8 35. Rxd8+ Rxd8 36. Qxd8+ Qe8 $11) 34... Re8 {[%emt 0:02:32]} 35. Ke1 {[%emt 0:00:45] Strongly threatening Rd7.} Qg8 {[%emt 0:00:54]} 36. Nh6 {[%emt 0:00:38]} (36. Rd7 $142 e4 37. Nd6) 36... Qg7 {[%emt 0:00:29]} 37. g5 {[%emt 0:00:28]} Rxh6 {[%emt 0:00:35]} 38. Qxh6 {[%emt 0:00:24]} Qxh6 {[%emt 0:00:23]} 39. gxh6 {[%emt 0:00:04][%mdl 4096] Endgame aiming for Rd7. KRR-KRB} Kg8 {[%emt 0:00:34]} 40. Rd7 {[%emt 0:00:00] Intending Rg7+ and mate.} Re6 {[%emt 0:00:00]} 41. h7+ {[%emt 0:03:22]} Kh8 {[%emt 0:03:56]} 42. Rb7 {[%emt 0:03:33]} Re8 {[%emt 0:03:04]} 43. Rd6 {[%emt 0:01:46]} e4 {[%emt 0:05:01]} 44. Rxc6 {[%emt 0:03:09]} e3 {[%emt 0:01:49]} 45. Rg6 {[%emt 0:02:42] b3 would kill now.} Rd8 {[%emt 0:02:02]} 46. b3 {[%emt 0:01:25] White mates.} Rf8 {[%emt 0:01:05]} 47. c4 {[%emt 0:02:03]} Bd4 {[%emt 0:01:25]} 48. Rg8+ {[%emt 0:01:35]} Rxg8 {[%emt 0:00:09]} 49. hxg8=Q+ {[%emt 0:00:08]} Kxg8 {[%emt 0:00:03]} 50. Rxb5 {[%emt 0:00:27] KR-KB} Kf7 {[%emt 0:01:04]} 51. Ke2 {[%emt 0:00:55]} Ke6 {[%emt 0:01:32]} 52. Kd3 {[%emt 0:02:11]} Bb6 {[%emt 0:00:50] [#]} 53. Rxb6+ $1 {[%emt 0:03:04]} axb6 {[%emt 0:00:05]} 54. Kxe3 {[%emt 0:00:06]} Kd7 {[%emt 0:02:49]} 55. Kd4 {[%emt 0:01:38]} Kc6 {[%emt 0:07:29]} 56. Ke5 {[%emt 0:01:20]} Kc7 {[%emt 0:00:33]} 57. Kd5 {[%emt 0:00:55]} Kd7 {[%emt 0:00:07]} 58. b5 {[%emt 0:00:34] Weighted Error Value: White=0.50/Black=0.41} 1-0

[Event "LV Capablanca Memorial Premier 2022"]
[Site "La Habana"]
[Date "2022.04.27"]
[Round "8.3"]
[White "Bulmaga, Irina"]
[Black "Ordaz Valdes, Lisandra Teresa"]
[Result "1-0"]
[ECO "C54"]
[WhiteElo "2390"]
[BlackElo "2371"]
[Annotator "TA"]
[PlyCount "48"]
[EventDate "2022.04.20"]
[EventType "tourn"]
[EventCountry "CUB"]
[SourceTitle "playchess.com"]
[Source "ChessBase"]
[SourceQuality "1"]
[TimeControl "40/5400+30:1800+30"]

{[%evp 20,48,24,20,29,21,29,22,27,31,25,33,50,50,57,48,55,57,61,50,50,52,55,54,92,93,96,69,78,94,72]} 1. e4 {[%emt 0:00:05]} e5 {[%emt 0:00:14]} 2. Nf3 {[%emt 0:00:08]} Nc6 {[%emt 0:00:07]} 3. Bc4 {[%emt 0:00:09]} Bc5 {[%emt 0:00:38]} 4. c3 {[%emt 0:00:50]} Nf6 {[%emt 0:00:42]} 5. d4 {[%emt 0:00:00]} exd4 {[%emt 0:00:26]} 6. e5 {[%emt 0:00:00]} d5 {[%emt 0:00:38]} 7. Bb5 {[%emt 0:00:00]} Ne4 {[%emt 0:00:54]} 8. cxd4 {[%emt 0:00:00]} Bb4+ {[%emt 0:03:54]} 9. Bd2 {[%emt 0:00:19]} Bxd2+ {[%emt 0:05:21]} 10. Nbxd2 {[%emt 0:00:11]} Bd7 {[%emt 0:00:22]} 11. Bxc6 {[%emt 0:21:07]} Bxc6 {[%emt 0:01:00] C54: Giuoco Piano: 4 c3 Nf6, main lines with 5 d4 and 5 d3.} 12. O-O {[%emt 0:00:09]} O-O {[%emt 0:01:21]} 13. Qc2 {[%emt 0:02:53] [#]} f5 $146 {[%emt 0:05:18] The position is equal.} ({Predecessor:} 13... Qd7 14. Rac1 a5 15. Rfe1 Ra6 16. Nb3 a4 17. Nc5 Nxc5 18. Qxc5 Rb6 19. Qc2 Qe7 {0-1 (60) Agmanov,Z (2390)-Faizulaev,A (2388) Pavlodar 2018}) 14. exf6 {[%emt 0:05:13]} Rxf6 {[%emt 0:03:32]} 15. Ne5 {[%emt 0:02:44]} Nxd2 {[%emt 0:27:10]} 16. Qxd2 {[%emt 0:00:14]} Bb5 {[%emt 0:00:09]} 17. Rfe1 {[%emt 0:00:50]} Qd6 {[%emt 0:00:21]} 18. a4 {[%emt 0:04:02]} Bd7 {[%emt 0:03:08]} 19. Ra3 {[%emt 0:03:51]} Raf8 {[%emt 0:00:30]} 20. f3 {[%emt 0:00:19]} Bf5 {[%emt 0:03:42]} 21. Rae3 {[%emt 0:06:01]} b6 {[%emt 0:05:39] [#]} 22. b4 $1 {[%emt 0:08:41]} c6 23. Rc1 {[%emt 0:00:30]} Rc8 24. b5 {[%emt 0:00:30] White is more active.} cxb5 {Weighted Error Value: White=0.03 (flawless) /Black=0.07 (flawless)} 1-0

[Event "LV Capablanca Memorial Premier 2022"]
[Site "La Habana"]
[Date "2022.04.27"]
[Round "8.4"]
[White "Cori Tello, Deysi"]
[Black "Arribas Robaina, Maritza"]
[Result "0-1"]
[ECO "E60"]
[WhiteElo "2391"]
[BlackElo "2204"]
[Annotator "TA"]
[PlyCount "51"]
[EventDate "2022.04.20"]
[EventType "tourn"]
[EventCountry "CUB"]
[SourceTitle "playchess.com"]
[Source "ChessBase"]
[SourceQuality "1"]
[TimeControl "40/5400+30:1800+30"]

{[%evp 20,51,22,7,16,4,22,23,14,14,34,35,47,47,50,46,49,50,50,28,31,19,34,10,51,10,36,0,50,0,36,0,49,41]} 1. Nf3 {[%emt 0:00:34]} Nf6 {[%emt 0:00:08]} 2. d4 {[%emt 0:00:51]} g6 {[%emt 0:00:25]} 3. g3 {[%emt 0:00:39]} Bg7 {[%emt 0:00:29]} 4. Bg2 {[%emt 0:00:03]} O-O {[%emt 0:01:56]} 5. O-O {[%emt 0:00:16]} d6 {[%emt 0:00:13]} 6. b3 {[%emt 0:00:37]} Nbd7 {[%emt 0:01:04]} 7. Bb2 {[%emt 0:00:10]} e5 {[%emt 0:02:20]} 8. dxe5 {[%emt 0:00:52]} Ng4 {[%emt 0:03:15]} 9. c4 {[%emt 0:01:38]} dxe5 {[%emt 0:02:39]} 10. h3 Nh6 {[%emt 0:03:42]} 11. e4 {[%emt 0:03:19]} f6 {[%emt 0:13:41] E60: King's Indian: Unusual lines and Fianchetto Variation without Nc3.} 12. Qc2 {[%emt 0:09:58]} Re8 {[%emt 0:04:42]} 13. c5 {[%emt 0:02:51]} c6 {[%emt 0:00:09] White has an edge.} 14. Nbd2 {[%emt 0:07:46]} Qe7 {[%emt 0:03:27]} 15. b4 {[%emt 0:02:31]} Nf8 {[%emt 0:06:14]} 16. Nc4 {[%emt 0:00:18] [#]} Nf7 $146 {[%emt 0:10:05] Prevents Nd6.} ({Predecessor:} 16... Be6 17. Nfd2 Nf7 18. f4 Qd7 19. f5 gxf5 20. exf5 Bd5 21. Ne4 Bxe4 22. Bxe4 Red8 {1-0 (44) Jansa,V (2482)-Kaminik,A (2226) Arvier 2006}) 17. Rfd1 {[%emt 0:05:08]} Be6 {[%emt 0:00:00]} 18. a4 {[%emt 0:06:31]} Rad8 {[%emt 0:00:00]} 19. Kh2 {[%emt 0:25:36]} Rxd1 {[%emt 0:00:00]} 20. Rxd1 {[%emt 0:00:23]} Rd8 {[%emt 0:02:50]} 21. Re1 {[%emt 0:00:00]} Nh6 {[%emt 0:00:00]} 22. Ncd2 {[%emt 0:00:00]} Re8 23. Nc4 {[%emt 0:00:00]} Rd8 {[%emt 0:00:00]} 24. Ncd2 {[%emt 0:00:00]} Re8 25. Nc4 {[%emt 0:00:26]} Nf7 {[%emt 0:00:00]} (25... Rd8 $11) 26. Ba3 {[%emt 0:06:46][%mdl 32768] Weighted Error Value: White=0.16 (very precise) /Black=0.10 (very precise) . Loss on time!?} 0-1

[Event "LV Capablanca Memorial Premier 2022"]
[Site "La Habana"]
[Date "2022.04.27"]
[Round "8.5"]
[White "Miranda Llanes, Yerisbel"]
[Black "Lujan, Carolina"]
[Result "1-0"]
[ECO "D85"]
[WhiteElo "2261"]
[BlackElo "2334"]
[Annotator "TA"]
[PlyCount "73"]
[EventDate "2022.04.20"]
[EventType "tourn"]
[EventCountry "CUB"]
[SourceTitle "playchess.com"]
[Source "ChessBase"]
[SourceQuality "1"]
[TimeControl "40/5400+30:1800+30"]

{[%evp 16,73,48,35,40,16,0,-5,0,0,0,0,0,0,0,-16,-5,-25,-27,-23,-22,-40,0,-32,-14,-14,-14,-15,-16,-63,-67,-55,-9,-72,0,0,295,291,300,293,293,275,300,283,305,297,320,298,422,421,525,277,397,0,366,222,418,228,316,90]} 1. d4 {[%emt 0:00:21]} Nf6 {[%emt 0:00:06]} 2. c4 {[%emt 0:00:05]} g6 {[%emt 0:00:06]} 3. Nc3 {[%emt 0:00:04]} d5 {[%emt 0:00:06]} 4. cxd5 {[%emt 0:00:04]} Nxd5 {[%emt 0:00:05]} 5. e4 {[%emt 0:00:08]} Nxc3 {[%emt 0:00:07]} 6. bxc3 {[%emt 0:00:02]} Bg7 {[%emt 0:00:12]} 7. Nf3 {[%emt 0:00:08]} c5 {[%emt 0:00:09]} 8. Bb5+ {[%emt 0:00:06]} Bd7 {[%emt 0:00:17]} 9. Be2 {[%emt 0:00:37]} Bg4 {[%emt 0:00:09] D85: Exchange Grünfeld: Unusual White 7th moves and lines with 7 Nf3.} 10. O-O {[%emt 0:01:24]} cxd4 {[%emt 0:25:14]} 11. cxd4 {[%emt 0:01:37]} Nc6 {[%emt 0:03:36] The position is equal.} 12. Rb1 {[%emt 0:00:52]} Bxf3 {[%emt 0:08:38]} 13. Bxf3 {[%emt 0:00:08] And now d5 would win.} Nxd4 {[%emt 0:03:08]} 14. Rxb7 {[%emt 0:02:06] Hoping for Qa4+.} O-O {[%emt 0:08:29]} 15. Bg4 {[%emt 0:15:19] [#]} e6 $146 {[%emt 0:18:26]} ({Predecessor:} 15... Qa5 16. Rd7 e5 17. Qd2 Qa4 18. Rd5 h5 19. Bd1 Qc4 20. Ba3 Rfd8 21. Rxd8+ Rxd8 22. Qa5 Rd7 23. Qa4 Ne2+ {0-1 (23) Novak,I (1782)-Luijpen,M (2060) Bol 2010}) 16. Ba3 {[%emt 0:09:11]} Re8 {[%emt 0:00:00]} 17. Qa4 {[%emt 0:00:30]} h5 {[%emt 0:00:00]} 18. Bd1 {[%emt 0:05:53]} a6 {[%emt 0:07:22]} (18... Qc8 $5 {[%cal Rc8b7]} 19. Qd7 (19. Rxa7 Rxa7 20. Qxa7 Qc6 $15) 19... Qxd7 20. Rxd7 Red8 21. Rxd8+ Rxd8 $11) 19. Bb2 {[%emt 0:07:34] [#] Threatens to win with Rd7.} (19. Rd7 $5 {[%cal Rd7d8]} Qb6 20. g4 $11) 19... Qc8 {[%emt 0:02:20]} 20. Rb4 {[%cal Bb7b4,Bb4c4,Bc4c6][%mdl 32]} Nb5 {[%emt 0:00:30][%cal Bd4b5,Bb5c3,Bc3e2][%mdl 32]} 21. Bxg7 Kxg7 {[%emt 0:00:30]} 22. Bb3 (22. Qb3 $11 {might be stronger.}) 22... Nc3 $15 {[%emt 0:00:30]} 23. Qa5 Ne2+ $1 {[%emt 0:00:30]} 24. Kh1 e5 {[%emt 0:00:30]} ({Black should play} 24... Qc3 $17) 25. Rc4 Qg4 {[%emt 0:00:30][%mdl 8192] [#]} (25... Qd8 $11 26. Qxd8 (26. Rc7 Ra7 $11) 26... Raxd8) 26. Bd1 $1 $18 {Black must now prevent h3.} Rad8 {[%emt 0:00:30][%cal Od8d1]} 27. Qe1 ({Inferior is} 27. Qxa6 Rxd1 28. Rxd1 {[#]} Ng3+ $1 {[%mdl 512]} 29. hxg3 Qxd1+ 30. Kh2 Rb8 $17) 27... Rxd1 {[%emt 0:00:30]} 28. Qxd1 Nf4 {[%emt 0:00:30][%csl Gf4][%cal Rg4g2]} 29. Qxg4 hxg4 {[%emt 0:00:30][%mdl 4096] Endgame KRR-KRN} 30. Rc6 Rd8 {[%emt 0:00:30]} 31. a4 a5 {[%emt 0:00:30]} (31... Rd2 {was worth a try.} 32. Rxa6 Ne6) 32. Rc5 {[%csl LRa5,LRe5]} Kf6 {[%emt 0:00:30]} 33. Rb5 Ne2 {[%emt 0:00:30]} (33... Rd2 {keeps fighting.} 34. Rxa5 Ra2) 34. Rc5 Nf4 $1 {[%emt 0:00:30]} 35. g3 Ne6 {[%emt 0:00:30]} (35... Nh3 {was called for.} 36. Rxa5 Rd2) 36. Rc6 (36. Rxa5 $142 Ng5 37. Rb5) 36... Kg5 {[%emt 0:00:30]} 37. h4+ $2 {[%emt 0:41:21] Weighted Error Value: White=0.45/Black=0.46} (37. Ra6 $18 {and White stays clearly on top.}) 1-0

[Event "LV Capablanca Memorial Premier 2022"]
[Site "La Habana"]
[Date "2022.04.28"]
[Round "9.2"]
[White "Arribas Robaina, Maritza"]
[Black "Miranda Llanes, Yerisbel"]
[Result "0-1"]
[ECO "C78"]
[WhiteElo "2204"]
[BlackElo "2261"]
[Annotator "TA"]
[PlyCount "68"]
[EventDate "2022.04.20"]
[EventType "tourn"]
[EventCountry "CUB"]
[SourceTitle "playchess.com"]
[Source "ChessBase"]
[SourceQuality "1"]
[TimeControl "40/5400+30:1800+30"]

{[%evp 16,68,43,-13,0,-21,-8,-10,0,-46,-62,-62,-55,-66,-54,-54,-48,-60,-61,-75,-58,-334,-110,-106,-117,-110,-101,-122,-88,-335,-306,-369,-369,-369,-369,-397,-369,-369,-369,-406,-401,-388,-378,-715,-541,-927,-891,-861,-858,-29993,-29994,-29996,-29997,-29997,-29998]} 1. e4 {[%emt 0:00:57]} e5 {[%emt 0:02:56]} 2. Nf3 {[%emt 0:00:09]} Nc6 {[%emt 0:00:08]} 3. Bb5 {[%emt 0:00:15]} a6 {[%emt 0:00:05]} 4. Ba4 {[%emt 0:00:29]} Nf6 {[%emt 0:00:12]} 5. O-O {[%emt 0:00:53]} b5 {[%emt 0:00:04]} 6. Bb3 {[%emt 0:00:07]} Bc5 {[%emt 0:00:04]} 7. c3 {[%emt 0:01:16]} d6 {[%emt 0:00:24]} 8. d4 {[%emt 0:03:48]} Bb6 {[%emt 0:00:13]} 9. h3 {[%emt 0:00:28]} (9. a4 $14) 9... Bb7 $11 {[%emt 0:04:56] C78: Ruy Lopez: Archangelsk and Möller Defences.} 10. Bg5 {[%emt 0:04:08]} h6 {[%emt 0:00:53]} 11. Bxf6 {[%emt 0:02:46]} Qxf6 {[%emt 0:00:07] The position is equal.} 12. dxe5 {[%emt 0:02:07]} (12. Bd5 $11) 12... Nxe5 $15 {[%emt 0:01:26]} 13. Nxe5 {[%emt 0:04:03]} dxe5 {[%emt 0:01:11]} 14. Qe2 {[%emt 0:02:29] [#]} Rd8 $146 {[%emt 0:01:16]} ({Predecessor:} 14... O-O 15. Nd2 Rad8 16. Kh1 Qf4 17. Rad1 Rd6 18. f3 Be3 19. Nb1 Rg6 20. Rd3 Bc5 {0-1 (46) Pantaleoni,C (2235)-Samaritani,F (2220) Bratto 1997}) 15. a4 {[%emt 0:06:13]} O-O {[%emt 0:03:14]} 16. axb5 {[%emt 0:05:40]} axb5 {[%emt 0:00:05] White must now prevent ...Qf4.} 17. Na3 {[%emt 0:02:24]} Qf4 {[%emt 0:04:39] Strongly threatening ...Rd2.} 18. Bc2 $2 {[%emt 0:24:32][%mdl 8192]} (18. Rfd1 $15) 18... Rd6 $2 {[%emt 0:09:26]} (18... Rd2 $2 19. Qf3 $19) (18... f5 $19 19. Rad1 fxe4 20. Rxd8 Rxd8 21. Qxb5 e3 22. Qc4+ Kf8 23. Qxf4+ (23. fxe3 Bxe3+ 24. Kh1 Bxg2+ 25. Kxg2 Rd2+) 23... exf4) 19. Rad1 $17 {[%emt 0:05:18]} Rg6 {[%emt 0:05:04] Hoping for ...Qg3. 0x0.00190eb48959dp-1022s more active pieces.} 20. Kh1 {[%emt 0:03:08]} Qh4 {[%emt 0:07:16]} ({And not} 20... Qg5 21. f4 exf4 22. Nxb5) 21. Nxb5 {[%emt 0:08:49] [#]} f5 $1 $40 {[%emt 0:07:20][%cal Rf5e4,Bf7f5,Bf5f4][%mdl 160] Black is out for blood.} ({Don't play} 21... Qg5 $6 22. g3 $11) 22. f3 {[%emt 0:09:37] [#]} (22. f4 $17 exf4 23. Nd4) 22... f4 $1 $19 {[%emt 0:01:20]} 23. Nxc7 {[%emt 0:07:21] aiming for Nd5.} Bc8 {[%emt 0:05:08]} ({Avoid the trap} 23... Bxc7 $2 24. Qc4+ Kh7 25. Qxc7 Rxg2 26. Kxg2 $19) 24. Bb3+ {[%emt 0:00:10]} Kh7 {[%emt 0:01:29]} 25. Ne6 {[%emt 0:02:02]} Bxe6 {[%emt 0:00:40]} 26. Bxe6 {[%emt 0:00:07]} Rxe6 {[%emt 0:00:07]} 27. Qe1 {[%emt 0:01:37]} Qh5 {[%emt 0:00:37]} 28. Rd5 {[%emt 0:00:13]} Rg6 {[%emt 0:00:55] Threatens to win with ...Be3.} 29. c4 $2 {[%emt 0:01:27]} (29. Qe2) 29... Be3 {[%emt 0:03:15]} 30. Qe2 {[%emt 0:01:32]} Rg3 {[%emt 0:00:28][%cal Og3h3]} 31. Rfd1 {[%emt 0:00:51]} Rf6 {[%emt 0:00:43] ( -> ...Rfg6)} 32. Rd6 {[%emt 0:00:22]} Rxd6 {[%emt 0:00:35] Black mates.} 33. Rxd6 {[%emt 0:00:05] [#]} Rxh3+ $1 {[%emt 0:00:11][%mdl 512]} 34. gxh3 {[%emt 0:00:09]} Qxh3+ {[%emt 0:00:23] Weighted Error Value: White=0.92/Black=0.20 (precise)} 0-1